[Event "CZE-ch Open 2018"]
[Site "Ostrava"]
[Date "2018.05.03"]
[Round "6"]
[White "Simek, Petr"]
[Black "Tuma, Jiri"]
[Result "1/2-1/2"]
[ECO "E62"]
[WhiteElo "2378"]
[BlackElo "2296"]
[Annotator "NA"]
[PlyCount "20"]
[EventDate "2018.??.??"]
[EventCountry "CZE"]
[SourceTitle "playchess.com"]
[Source "ChessBase"]
[SourceQuality "1"]
[TimeControl "40/5400+30:900+30"]

1. d4 {[%emt 0:01:27]} Nf6 {[%emt 0:00:21]} 2. c4 {[%emt 0:00:06]} g6 {[%emt 0:00:17]} 3. g3 {[%emt 0:00:19]} Bg7 {[%emt 0:00:26]} 4. Bg2 {[%emt 0:00:06]} O-O {[%emt 0:00:29]} 5. Nc3 {[%emt 0:00:15]} d6 {[%emt 0:00:28]} 6. Nf3 {[%emt 0:00:27]} c6 {[%emt 0:00:31]} 7. O-O {[%emt 0:00:30]} Qa5 {[%emt 0:00:48]} 8. e4 {[%emt 0:01:28]} Nbd7 {[%emt 0:00:23]} 9. h3 {[%emt 0:00:14]} e5 {[%emt 0:00:26]} 10. Re1 {[%emt 0:00:14]} exd4 {[%emt 0:00:45]} 1/2-1/2

[Event "CZE-ch Open 2018"]
[Site "Ostrava"]
[Date "2018.05.03"]
[Round "6"]
[White "Rubes, Jan"]
[Black "Riha, Vojtech"]
[Result "0-1"]
[ECO "A04"]
[WhiteElo "2337"]
[BlackElo "2141"]
[Annotator "NA"]
[PlyCount "76"]
[EventDate "2018.??.??"]
[EventCountry "CZE"]
[SourceTitle "playchess.com"]
[Source "ChessBase"]
[SourceQuality "1"]
[TimeControl "40/5400+30:900+30"]

1. Nf3 {[%emt 0:00:00]} b6 {[%emt 0:00:43]} 2. g3 {[%emt 0:06:41]} Bb7 {[%emt 0:00:05]} 3. Bg2 {[%emt 0:00:04]} Nf6 {[%emt 0:00:40]} 4. c4 {[%emt 0:00:08]} e5 {[%emt 0:01:33]} 5. Nc3 {[%emt 0:02:21]} d6 {[%emt 0:05:18] A15: English Opening: 1...Nf6} (5... Bb4 6. Qc2 O-O 7. O-O Re8 8. d3 Bxc3 9. Qxc3 d5 10. cxd5 Nxd5 11. Qc2 Nc6 12. a3 a5 13. e3 {½-½ (42) Karpov,A (2674)-Kortschnoj,V (2617) Mainz 2005}) 6. O-O {[%emt 0:00:20]} Be7 {[%emt 0:00:35]} 7. d4 {[%emt 0:00:38]} Nbd7 {[%emt 0:01:26]} 8. Re1 {[%emt 0:12:00]} Rb8 $146 {[%emt 0:10:02]} ({Predecessor:} 8... Qb8 9. e4 O-O 10. b3 a6 11. Nd5 Nxd5 12. cxd5 Rd8 13. Ba3 Bf6 14. Rc1 Ra7 15. Rc2 {1-0 (46) Stojanovic,M (2557)-Abramovic,B (2491) Vrnjacka Banja 2010}) 9. e4 {[%emt 0:00:44]} O-O {[%emt 0:01:28]} 10. b3 {[%emt 0:00:46]} Re8 {[%emt 0:00:45]} 11. Bb2 {[%emt 0:00:47]} Bf8 {[%emt 0:01:19]} 12. Qc2 {[%emt 0:01:35]} c6 {[%emt 0:02:22]} 13. Rad1 {[%emt 0:01:09]} Qc7 {[%emt 0:00:22]} 14. d5 {[%emt 0:05:53]} a6 {[%emt 0:03:08]} 15. Nh4 {[%emt 0:09:44]} Rbc8 {[%emt 0:02:03]} 16. Qe2 {[%emt 0:02:44]} g6 {[%emt 0:03:03]} 17. Bh3 {[%emt 0:08:19]} Rcd8 {[%emt 0:06:07]} 18. Ng2 {[%emt 0:02:15]} Bg7 {[%emt 0:05:13]} 19. dxc6 {[%emt 0:01:25]} Bxc6 {[%emt 0:00:05]} 20. Nd5 {[%emt 0:00:18]} Qb7 {[%emt 0:01:37]} 21. f3 {[%emt 0:00:52]} b5 {[%emt 0:01:30]} 22. Nge3 {[%emt 0:00:21]} bxc4 {[%emt 0:03:52]} 23. Bxd7 {[%emt 0:03:40]} Rxd7 {[%emt 0:03:15]} 24. Qxc4 {[%emt 0:00:15]} Rc8 {[%emt 0:04:37]} 25. Qe2 {[%emt 0:03:34]} Nxd5 {[%emt 0:02:22]} 26. Nxd5 {[%emt 0:00:05]} f5 {[%emt 0:04:15]} 27. Ba3 {[%emt 0:01:22]} Bb5 {[%emt 0:05:13]} 28. Qf2 {[%emt 0:04:33]} Rf7 {[%emt 0:14:13]} 29. exf5 {[%emt 0:09:42]} gxf5 {[%emt 0:05:25]} 30. Bxd6 {[%emt 0:00:49]} e4 {[%emt 0:00:38]} 31. fxe4 {[%emt 0:02:58]} fxe4 {[%emt 0:00:18]} 32. Qb6 {[%emt 0:03:32]} Qxb6+ {[%emt 0:05:31]} 33. Nxb6 {[%emt 0:00:05]} Rc2 {[%emt 0:01:25]} 34. Bf4 {[%emt 0:10:27]} Bd3 {[%emt 0:00:32]} 35. Nd5 {[%emt 0:00:06]} Bd4+ {[%emt 0:01:24]} ({Much worse is} 35... Rxa2 36. Nb4 $16) 36. Kh1 {[%emt 0:00:11]} Bf2 {[%emt 0:03:27]} 37. Nb4 {[%emt 0:00:34]} Be2 {[%emt 0:01:23]} 38. Nxc2 {[%emt 0:00:11]} (38. Rd8+ $11 Rf8 39. Rxf8+ Kxf8 40. Kg2 (40. Bh6+ Kf7 $11) 40... Bf3+ 41. Kf1) 38... Bf3# 0-1

[Event "CZE-ch Open 2018"]
[Site "Ostrava"]
[Date "2018.05.03"]
[Round "6"]
[White "Obsivac, Josef"]
[Black "Stepan, Patrik"]
[Result "1/2-1/2"]
[ECO "E15"]
[WhiteElo "2330"]
[BlackElo "2207"]
[Annotator "ChessBase"]
[PlyCount "98"]
[EventDate "2018.??.??"]
[EventCountry "CZE"]
[SourceTitle "playchess.com"]
[Source "ChessBase"]
[SourceQuality "1"]
[TimeControl "40/5400+30:900+30"]

1. d4 {[%emt 0:02:34]} Nf6 {[%emt 0:00:05]} 2. c4 {[%emt 0:00:41]} e6 {[%emt 0:00:05]} 3. Nf3 {[%emt 0:00:06]} b6 {[%emt 0:00:03]} 4. g3 {[%emt 0:00:43]} Ba6 {[%emt 0:00:05]} 5. Qc2 {[%emt 0:00:25]} Bb7 {[%emt 0:00:27]} 6. Bg2 {[%emt 0:00:17]} c5 {[%emt 0:00:04]} 7. d5 {[%emt 0:00:27]} exd5 {[%emt 0:00:05]} 8. O-O {[%emt 0:06:12]} Nc6 {[%emt 0:18:46]} 9. cxd5 {[%emt 0:01:47]} Nb4 {[%emt 0:01:12]} 10. Qd1 {[%emt 0:03:44]} Bxd5 {[%emt 0:08:15]} 11. Nc3 {[%emt 0:13:30]} Bb7 {[%emt 0:05:28]} 12. e4 {[%emt 0:02:33]} d6 {[%emt 0:01:24]} 13. Nh4 {[%emt 0:08:42]} Nc6 {[%emt 0:21:03]} 14. Re1 {[%emt 0:02:47]} Be7 {[%emt 0:03:01]} 15. Nf5 {[%emt 0:05:07]} O-O {[%emt 0:01:08]} 16. Bg5 {[%emt 0:03:25]} Ne8 {[%emt 0:03:50]} 17. Nxe7+ {[%emt 0:08:02]} Nxe7 {[%emt 0:00:01]} 18. e5 {[%emt 0:04:41]} d5 {[%emt 0:00:34]} 19. Bxd5 {[%emt 0:03:54]} Rb8 {[%emt 0:00:01]} 20. Bg2 {[%emt 0:03:27]} Qxd1 {[%emt 0:02:12]} 21. Raxd1 {[%emt 0:00:08]} Ng6 {[%emt 0:02:00]} 22. Rd7 {[%emt 0:03:30]} Bxg2 {[%emt 0:00:06]} 23. Kxg2 {[%emt 0:00:05]} f6 {[%emt 0:02:16]} 24. exf6 {[%emt 0:03:48]} gxf6 {[%emt 0:00:01]} 25. Bh6 {[%emt 0:03:37]} Rf7 {[%emt 0:00:08]} 26. Red1 {[%emt 0:00:26]} Ne5 {[%emt 0:07:37]} 27. Rxf7 {[%emt 0:00:11]} Kxf7 {[%emt 0:01:02]} 28. Bf4 {[%emt 0:02:22]} Ke6 {[%emt 0:01:48]} 29. Bxe5 {[%emt 0:04:12]} fxe5 {[%emt 0:01:02]} 30. Ne4 {[%emt 0:00:16]} h6 {[%emt 0:03:05]} 31. Kf3 {[%emt 0:00:20]} Rb7 {[%emt 0:01:32]} 32. Rd8 {[%emt 0:01:57]} Rf7+ {[%emt 0:00:09]} 33. Ke2 {[%emt 0:03:48]} Nf6 {[%emt 0:01:38]} 34. Rd6+ {[%emt 0:02:21]} Ke7 {[%emt 0:00:19]} 35. Rxf6 {[%emt 0:00:08]} Rxf6 {[%emt 0:00:01]} 36. Nxf6 {[%emt 0:00:12]} Kxf6 {[%emt 0:00:01]} 37. Ke3 {[%emt 0:00:25]} Kf5 {[%emt 0:01:24]} 38. f3 {[%emt 0:00:13]} c4 {[%emt 0:06:50]} 39. g4+ {[%emt 0:05:56]} Ke6 {[%emt 0:00:11]} 40. f4 {[%emt 0:01:13]} b5 {[%emt 0:21:47]} 41. a3 {[%emt 0:02:49]} a5 {[%emt 0:00:00]} 42. fxe5 {[%emt 0:02:13]} Kxe5 {[%emt 0:00:00]} 43. h4 {[%emt 0:00:08]} b4 {[%emt 0:00:00]} 44. a4 {[%emt 0:00:27]} c3 {[%emt 0:00:00]} 45. bxc3 {[%emt 0:00:15]} bxc3 {[%emt 0:00:00]} 46. Kd3 {[%emt 0:00:32]} Kf4 {[%emt 0:00:00]} 47. g5 {[%emt 0:01:28]} hxg5 {[%emt 0:00:00]} 48. hxg5 {[%emt 0:00:10]} Kxg5 {[%emt 0:00:00]} 49. Kxc3 {[%emt 0:00:10]} Kf6 {[%emt 0:00:00]} 1/2-1/2

[Event "CZE-ch Open 2018"]
[Site "Ostrava"]
[Date "2018.05.03"]
[Round "6"]
[White "Mrazek, Lumir"]
[Black "Vlasak, Lukas"]
[Result "0-1"]
[ECO "C29"]
[WhiteElo "2327"]
[BlackElo "2381"]
[Annotator "ChessBase"]
[PlyCount "82"]
[EventDate "2018.??.??"]
[EventCountry "CZE"]
[SourceTitle "playchess.com"]
[Source "ChessBase"]
[SourceQuality "1"]
[TimeControl "40/5400+30:900+30"]

1. e4 {[%emt 0:00:00]} e5 {[%emt 0:00:13]} 2. Nc3 {[%emt 0:00:26]} Nf6 {[%emt 0:01:46]} 3. f4 {[%emt 0:03:24]} d5 {[%emt 0:01:12]} 4. fxe5 {[%emt 0:00:34]} Nxe4 {[%emt 0:00:11]} 5. Nf3 {[%emt 0:00:09]} Be7 {[%emt 0:08:17]} 6. Qe2 {[%emt 0:11:33]} Nxc3 {[%emt 0:00:10]} 7. dxc3 {[%emt 0:00:41]} c5 {[%emt 0:01:21]} 8. c4 {[%emt 0:01:50]} Nc6 {[%emt 0:04:19]} 9. cxd5 {[%emt 0:30:58]} Qxd5 {[%emt 0:00:30]} 10. Qc4 {[%emt 0:00:24]} Be6 {[%emt 0:02:37]} 11. Qxd5 {[%emt 0:00:05]} Bxd5 {[%emt 0:00:08]} 12. Bf4 {[%emt 0:00:35]} O-O-O {[%emt 0:11:33]} 13. O-O-O {[%emt 0:05:48]} h6 {[%emt 0:01:13]} 14. Rxd5 {[%emt 0:06:15]} Rxd5 {[%emt 0:00:02]} 15. Bc4 {[%emt 0:00:08]} Rdd8 {[%emt 0:05:25]} 16. Bxf7 {[%emt 0:01:49]} Rhf8 {[%emt 0:01:02]} 17. e6 {[%emt 0:13:12]} Rd5 {[%emt 0:04:13]} 18. c4 {[%emt 0:00:54]} Rf5 {[%emt 0:04:16]} 19. Bg3 {[%emt 0:00:01]} Nd8 {[%emt 0:05:59]} 20. Ne5 {[%emt 0:06:52]} Nxf7 {[%emt 0:07:07]} 21. Nxf7 {[%emt 0:00:45]} Rf6 {[%emt 0:02:33]} 22. Re1 {[%emt 0:00:24]} Re8 {[%emt 0:02:43]} 23. Bd6 {[%emt 0:00:14]} b6 {[%emt 0:04:46]} 24. g4 {[%emt 0:00:01]} Bd8 {[%emt 0:03:00]} 25. Nxd8 {[%emt 0:09:22]} Kxd8 {[%emt 0:00:56]} 26. e7+ {[%emt 0:00:30]} Kd7 {[%emt 0:00:33]} 27. Be5 {[%emt 0:00:28]} Re6 {[%emt 0:01:14]} 28. Rd1+ {[%emt 0:00:46]} Kxe7 {[%emt 0:00:11]} 29. Bxg7 {[%emt 0:00:34]} Rg8 {[%emt 0:00:14]} 30. Bc3 {[%emt 0:00:05]} Rxg4 {[%emt 0:00:12]} 31. Rd2 {[%emt 0:00:11]} Rxc4 {[%emt 0:00:24]} 32. Rg2 {[%emt 0:00:07]} Rf4 {[%emt 0:00:10]} 33. Kc2 {[%emt 0:00:36]} Kd6 {[%emt 0:01:07]} 34. Rg7 {[%emt 0:00:48]} a5 {[%emt 0:00:11]} 35. Kb3 {[%emt 0:00:32]} a4+ {[%emt 0:00:29]} 36. Ka3 {[%emt 0:00:49]} b5 {[%emt 0:00:25]} 37. Bd2 {[%emt 0:00:15]} Rf3+ {[%emt 0:00:42]} 38. b3 {[%emt 0:00:02]} axb3 {[%emt 0:00:24]} 39. axb3 {[%emt 0:00:09]} c4 {[%emt 0:01:26]} 40. Rg3 {[%emt 0:00:07]} Rxg3 {[%emt 0:16:16]} 41. hxg3 {[%emt 0:15:01]} h5 {[%emt 0:00:47]} 0-1

[Event "CZE-ch Open 2018"]
[Site "Ostrava"]
[Date "2018.05.03"]
[Round "6"]
[White "Malik, Jan"]
[Black "Benes, Miroslav"]
[Result "1-0"]
[ECO "C50"]
[WhiteElo "2284"]
[BlackElo "2004"]
[Annotator "ChessBase"]
[PlyCount "107"]
[EventDate "2018.??.??"]
[EventCountry "CZE"]
[SourceTitle "playchess.com"]
[Source "ChessBase"]
[SourceQuality "1"]
[TimeControl "40/5400+30:900+30"]

1. e4 {[%emt 0:00:00]} e5 {[%emt 0:05:15]} 2. Nf3 {[%emt 0:00:00]} Nc6 {[%emt 0:00:21]} 3. Bc4 {[%emt 0:00:16]} Nf6 {[%emt 0:00:07]} 4. d3 {[%emt 0:00:04]} Bc5 {[%emt 0:00:04]} 5. O-O {[%emt 0:00:22]} d6 {[%emt 0:00:03]} 6. c3 {[%emt 0:00:13]} a6 {[%emt 0:00:05]} 7. Bb3 {[%emt 0:02:44]} Ba7 {[%emt 0:00:07]} 8. Re1 {[%emt 0:01:51]} h6 {[%emt 0:06:30]} 9. Be3 {[%emt 0:01:33]} Bxe3 {[%emt 0:00:41]} 10. Rxe3 {[%emt 0:00:20]} O-O {[%emt 0:00:15]} 11. Nbd2 {[%emt 0:00:33]} Ne7 {[%emt 0:00:58]} 12. d4 {[%emt 0:01:10]} Ng6 {[%emt 0:00:29]} 13. Nf1 {[%emt 0:03:45]} Be6 {[%emt 0:17:42]} 14. Ng3 {[%emt 0:00:26]} Re8 {[%emt 0:08:00]} 15. Ba4 {[%emt 0:06:46]} Bd7 {[%emt 0:06:10]} 16. dxe5 {[%emt 0:01:42]} Ng4 {[%emt 0:01:49]} 17. Re1 {[%emt 0:03:00]} N4xe5 {[%emt 0:00:15]} 18. Bxd7 {[%emt 0:00:46]} Qxd7 {[%emt 0:03:35]} 19. Nxe5 {[%emt 0:03:44]} Nxe5 {[%emt 0:04:07]} 20. f4 {[%emt 0:00:21]} Ng6 {[%emt 0:02:40]} 21. Rf1 {[%emt 0:05:11]} Qc6 {[%emt 0:00:54]} 22. Qd2 {[%emt 0:03:31]} f6 {[%emt 0:08:05]} 23. b3 {[%emt 0:02:33]} a5 {[%emt 0:01:51]} 24. Qd4 {[%emt 0:05:42]} a4 {[%emt 0:03:45]} 25. b4 {[%emt 0:00:08]} b5 {[%emt 0:02:20]} 26. Rad1 {[%emt 0:00:54]} Kh8 {[%emt 0:01:17]} 27. Kh1 {[%emt 0:01:05]} Re7 {[%emt 0:01:25]} 28. Qd3 {[%emt 0:00:46]} Rae8 {[%emt 0:07:09]} 29. Qf3 {[%emt 0:03:28]} Qc4 {[%emt 0:03:32]} 30. Qh5 {[%emt 0:09:39]} Nf8 {[%emt 0:03:33]} 31. Rf3 {[%emt 0:03:13]} Qxa2 {[%emt 0:03:27]} 32. Qxb5 {[%emt 0:00:11]} Qb3 {[%emt 0:01:01]} 33. Ra1 {[%emt 0:01:05]} Ra8 {[%emt 0:00:44]} 34. c4 {[%emt 0:02:31]} Qc2 {[%emt 0:04:11]} 35. Rfa3 {[%emt 0:06:56]} Ng6 {[%emt 0:01:07]} 36. R3a2 {[%emt 0:03:40]} Qc3 {[%emt 0:01:37]} 37. Qf5 {[%emt 0:02:26]} Nf8 {[%emt 0:01:04]} 38. Qd5 {[%emt 0:00:19]} Ree8 {[%emt 0:02:26]} 39. Qf7 {[%emt 0:04:06]} Ne6 {[%emt 0:00:45]} 40. Nh5 {[%emt 0:00:49]} f5 {[%emt 0:15:25]} 41. Ra3 {[%emt 0:22:29]} Qd4 {[%emt 0:00:00]} 42. Qxf5 {[%emt 0:00:00]} Qxc4 {[%emt 0:00:00]} 43. Qg6 {[%emt 0:00:00]} Qd4 {[%emt 0:00:00]} 44. h3 {[%emt 0:00:00]} Nf8 {[%emt 0:00:00]} 45. Qf7 {[%emt 0:00:00]} Rxe4 {[%emt 0:00:00]} 46. f5 {[%emt 0:00:00]} Rae8 {[%emt 0:00:00]} 47. Rf1 {[%emt 0:00:00]} R4e7 {[%emt 0:00:00]} 48. Qa2 {[%emt 0:00:00]} Re2 {[%emt 0:00:00]} 49. Qb1 {[%emt 0:00:00]} Rb2 {[%emt 0:00:00]} 50. Qc1 {[%emt 0:00:18]} Qxb4 {[%emt 0:00:00]} 51. Rg3 {[%emt 0:02:47]} Rbe2 {[%emt 0:01:50]} 52. Rxg7 {[%emt 0:01:02]} Qd2 {[%emt 0:03:43]} 53. Qxc7 {[%emt 0:00:39]} Qd4 {[%emt 0:00:14]} 54. Qf7 {[%emt 0:00:34]} 1-0

[Event "CZE-ch Open 2018"]
[Site "Ostrava"]
[Date "2018.05.03"]
[Round "6"]
[White "Svatos, Jan"]
[Black "Hausner, Ivan"]
[Result "1/2-1/2"]
[ECO "B02"]
[WhiteElo "2272"]
[BlackElo "2334"]
[Annotator "NA"]
[PlyCount "24"]
[EventDate "2018.??.??"]
[EventCountry "CZE"]
[SourceTitle "playchess.com"]
[Source "ChessBase"]
[SourceQuality "1"]
[TimeControl "40/5400+30:900+30"]

1. e4 {[%emt 0:00:00]} Nf6 {[%emt 0:00:03]} 2. e5 {[%emt 0:00:00]} Ng8 {[%emt 0:00:05]} 3. d4 {[%emt 0:00:00]} d6 {[%emt 0:00:05]} 4. Nf3 {[%emt 0:01:42]} dxe5 {[%emt 0:00:06]} 5. Nxe5 {[%emt 0:00:05]} Nd7 {[%emt 0:00:03]} 6. Bd3 {[%emt 0:02:13]} g6 {[%emt 0:00:10]} 7. O-O {[%emt 0:00:39]} Bg7 {[%emt 0:00:06]} 8. Re1 {[%emt 0:03:17]} Ngf6 {[%emt 0:00:06]} 9. Nd2 {[%emt 0:07:23]} O-O {[%emt 0:00:14]} 10. Ndf3 {[%emt 0:00:47]} Nxe5 {[%emt 0:02:45]} 11. dxe5 {[%emt 0:01:06]} Nd5 {[%emt 0:00:05]} 12. Bd2 {[%emt 0:04:26]} c6 {[%emt 0:00:33]} 1/2-1/2

[Event "CZE-ch Open 2018"]
[Site "Ostrava"]
[Date "2018.05.03"]
[Round "6"]
[White "Freisler, Pavel"]
[Black "Konopka, Michal"]
[Result "0-1"]
[ECO "D25"]
[WhiteElo "2266"]
[BlackElo "2373"]
[Annotator "ChessBase"]
[PlyCount "109"]
[EventDate "2018.??.??"]
[EventCountry "CZE"]
[SourceTitle "playchess.com"]
[Source "ChessBase"]
[SourceQuality "1"]
[TimeControl "40/5400+30:900+30"]

1. Nf3 {[%emt 0:00:00]} d5 {[%emt 0:02:54]} 2. d4 {[%emt 0:00:34]} Nf6 {[%emt 0:04:48]} 3. c4 {[%emt 0:00:26]} dxc4 {[%emt 0:00:44]} 4. e3 {[%emt 0:00:19]} g6 {[%emt 0:00:15]} 5. Bxc4 {[%emt 0:01:24]} Bg7 {[%emt 0:00:19]} 6. O-O {[%emt 0:18:19]} O-O {[%emt 0:00:47]} 7. b4 {[%emt 0:03:58]} Ne8 {[%emt 0:02:53]} 8. Bb2 {[%emt 0:01:21]} Nd6 {[%emt 0:00:15]} 9. Bb3 {[%emt 0:03:04]} a5 {[%emt 0:04:27]} 10. bxa5 {[%emt 0:00:23]} Nc6 {[%emt 0:00:58]} 11. Nbd2 {[%emt 0:01:27]} Nxa5 {[%emt 0:05:29]} 12. e4 {[%emt 0:01:37]} b6 {[%emt 0:14:03]} 13. e5 {[%emt 0:09:20]} Nxb3 {[%emt 0:05:53]} 14. axb3 {[%emt 0:04:46]} Rxa1 {[%emt 0:01:17]} 15. Bxa1 {[%emt 0:00:01]} Nb5 {[%emt 0:02:51]} 16. h3 {[%emt 0:06:24]} Be6 {[%emt 0:08:07]} 17. Qe2 {[%emt 0:01:02]} Qd5 {[%emt 0:04:14]} 18. Nc4 {[%emt 0:07:08]} Ra8 {[%emt 0:09:40]} 19. Rd1 {[%emt 0:00:31]} Bh6 {[%emt 0:05:17]} 20. Bb2 {[%emt 0:04:19]} Ra2 {[%emt 0:01:45]} 21. Ra1 {[%emt 0:06:12]} Rxa1+ {[%emt 0:05:53]} 22. Bxa1 {[%emt 0:00:02]} Qa8 {[%emt 0:00:09]} 23. Qb2 {[%emt 0:09:24]} Bxh3 {[%emt 0:05:34]} 24. Ne3 {[%emt 0:05:30]} Be6 {[%emt 0:01:12]} 25. Nd2 {[%emt 0:03:07]} Bg7 {[%emt 0:07:46]} 26. Qc1 {[%emt 0:02:18]} h5 {[%emt 0:00:47]} 27. Bb2 {[%emt 0:00:26]} Bh6 {[%emt 0:00:59]} 28. Qc2 {[%emt 0:02:15]} Bd5 {[%emt 0:01:33]} 29. Qd3 {[%emt 0:00:49]} Qc6 {[%emt 0:01:32]} 30. Ndc4 {[%emt 0:01:29]} Be4 {[%emt 0:00:49]} 31. Qd2 {[%emt 0:01:12]} e6 {[%emt 0:01:04]} 32. f3 {[%emt 0:03:25]} Bd5 {[%emt 0:01:24]} 33. Qd3 {[%emt 0:00:10]} Bf8 {[%emt 0:00:26]} 34. Bc1 {[%emt 0:00:42]} Na7 {[%emt 0:00:14]} 35. Bd2 {[%emt 0:00:21]} Nc8 {[%emt 0:00:13]} 36. Nc2 {[%emt 0:01:25]} Qd7 {[%emt 0:00:21]} 37. Bg5 {[%emt 0:00:24]} c5 {[%emt 0:00:12]} 38. dxc5 {[%emt 0:00:36]} Bxc5+ {[%emt 0:00:06]} 39. Kh2 {[%emt 0:00:20]} Bc6 {[%emt 0:00:19]} 40. Qxd7 {[%emt 0:02:32]} Bxd7 {[%emt 0:15:02]} 41. b4 {[%emt 0:00:00]} Bf8 {[%emt 0:00:00]} 42. Be3 {[%emt 0:00:00]} Ba4 {[%emt 0:00:00]} 43. N4a3 {[%emt 0:00:00]} Be7 {[%emt 0:00:00]} 44. Bd4 {[%emt 0:02:55]} Kf8 {[%emt 0:00:00]} 45. Kg3 {[%emt 0:00:22]} Ke8 {[%emt 0:00:00]} 46. Kf4 {[%emt 0:00:48]} Kd7 {[%emt 0:00:00]} 47. Ke4 {[%emt 0:00:25]} Kc6 {[%emt 0:00:00]} 48. Bc3 {[%emt 0:05:47]} Bxc2+ {[%emt 0:00:00]} 49. Nxc2 {[%emt 0:00:02]} Kb5 {[%emt 0:00:00]} 50. Kd3 {[%emt 0:01:40]} Ka4 {[%emt 0:00:25]} 51. f4 {[%emt 0:02:18]} b5 {[%emt 0:01:02]} 52. Bd2 {[%emt 0:02:59]} Nb6 {[%emt 0:02:23]} 53. Nd4 {[%emt 0:01:00]} Nd5 {[%emt 0:00:59]} 54. Nc6 {[%emt 0:00:22]} Bxb4 {[%emt 0:00:13]} 55. Kd4 0-1

[Event "CZE-ch Open 2018"]
[Site "Ostrava"]
[Date "2018.05.03"]
[Round "6"]
[White "Belunek, Vladimir"]
[Black "Jelinek, Michal"]
[Result "1/2-1/2"]
[ECO "E45"]
[WhiteElo "2216"]
[BlackElo "2134"]
[Annotator "NA"]
[PlyCount "98"]
[EventDate "2018.??.??"]
[EventCountry "CZE"]
[SourceTitle "playchess.com"]
[Source "ChessBase"]
[SourceQuality "1"]
[TimeControl "40/5400+30:900+30"]

1. d4 {[%emt 0:00:00]} Nf6 {[%emt 0:00:53]} 2. c4 {[%emt 0:00:00]} e6 {[%emt 0:00:07]} 3. Nc3 {[%emt 0:00:00]} Bb4 {[%emt 0:00:25]} 4. e3 {[%emt 0:00:00]} b6 {[%emt 0:00:31]} 5. Nge2 {[%emt 0:00:24]} Ba6 {[%emt 0:03:43]} 6. a3 {[%emt 0:00:50]} Bxc3+ {[%emt 0:00:35]} 7. Nxc3 {[%emt 0:00:07]} d5 {[%emt 0:00:42]} 8. b3 {[%emt 0:00:44]} O-O {[%emt 0:00:52]} 9. Be2 {[%emt 0:00:19]} dxc4 {[%emt 0:00:53]} 10. bxc4 {[%emt 0:00:08]} Nc6 {[%emt 0:00:34] E45: Nimzo-Indian: Rubinstein: 4...b6 5 Ne2 Ba6} 11. Bf3 {[%emt 0:10:23]} Na5 $146 {[%emt 0:03:48]} ({Predecessor:} 11... Qd7 12. Qa4 Bb7 13. O-O Na5 14. Qxd7 Nxd7 15. Bxb7 Nxb7 16. Ne4 Na5 17. Nd2 Rfd8 18. Ra2 {0-1 (35) Galje,H (2139)-Van Oosterom,C (2386) Hoogeveen 2009}) 12. Bxa8 {[%emt 0:01:31]} Qxa8 {[%emt 0:00:08]} 13. O-O {[%emt 0:00:22]} Bxc4 {[%emt 0:02:12]} 14. Re1 {[%emt 0:01:51]} Rd8 {[%emt 0:10:34]} 15. Qf3 {[%emt 0:05:33]} Qxf3 {[%emt 0:04:39]} 16. gxf3 {[%emt 0:01:15]} c5 {[%emt 0:02:40]} 17. dxc5 {[%emt 0:01:01]} Nb3 {[%emt 0:06:55]} 18. Rb1 {[%emt 0:00:39]} Nxc5 {[%emt 0:00:33]} 19. Bb2 {[%emt 0:26:08]} Nd3 {[%emt 0:10:10]} 20. Red1 {[%emt 0:01:22]} Nd7 {[%emt 0:02:52]} 21. Ne4 {[%emt 0:03:40]} f5 {[%emt 0:01:43]} 22. Nd6 {[%emt 0:01:29]} Nxb2 {[%emt 0:12:01]} 23. Rxb2 {[%emt 0:00:43]} Ne5 {[%emt 0:00:23]} 24. f4 {[%emt 0:06:56]} Nf3+ {[%emt 0:06:03]} 25. Kg2 {[%emt 0:00:48]} Bd5 {[%emt 0:00:08]} 26. Rxd5 {[%emt 0:04:12]} exd5 {[%emt 0:09:59]} 27. Nxf5 {[%emt 0:11:41]} Ne1+ 28. Kf1 {[%emt 0:00:22]} Nd3 {[%emt 0:07:13]} 29. Rd2 {[%emt 0:01:05]} Nc5 {[%emt 0:02:08]} 30. Rxd5 {[%emt 0:01:52]} Rxd5 {[%emt 0:00:15]} 31. Ne7+ {[%emt 0:00:09]} Kf7 {[%emt 0:00:07]} 32. Nxd5 {[%emt 0:00:03]} Ke6 {[%emt 0:01:14]} 33. Nc3 {[%emt 0:00:15]} a5 {[%emt 0:05:05]} 34. Ke2 {[%emt 0:01:23]} Kd6 {[%emt 0:00:16]} 35. e4 {[%emt 0:03:44]} Ne6 36. f5 {[%emt 0:07:50]} Nd4+ {[%emt 0:04:33]} 37. Kd3 {[%emt 0:00:07]} Nf3 {[%emt 0:00:44]} 38. h3 {[%emt 0:00:57]} Kc5 {[%emt 0:01:13]} 39. Na4+ {[%emt 0:04:06]} Kc6 {[%emt 0:01:40]} 40. Nc3 {[%emt 0:00:20]} b5 {[%emt 0:16:23]} 41. Nd5 {[%emt 0:17:00]} Kd6 {[%emt 0:00:00]} 42. f6 {[%emt 0:00:00]} gxf6 {[%emt 0:00:00]} 43. Nxf6 {[%emt 0:00:00]} h6 {[%emt 0:00:00]} 44. Ng4 {[%emt 0:00:00]} h5 {[%emt 0:00:00]} 45. Nf6 {[%emt 0:00:00]} h4 {[%emt 0:00:00]} 46. Nd5 {[%emt 0:00:00]} Ng5 {[%emt 0:00:00]} 47. Nf4 {[%emt 0:00:00]} b4 {[%emt 0:00:00]} 48. axb4 {[%emt 0:00:00]} axb4 {[%emt 0:00:00]} 49. Kd4 {[%emt 0:00:00]} Nf3+ $11 {[%emt 0:00:00]} 1/2-1/2